bitfinex/quotes_SOLUSD_20250922
["timestamp","ask_amount","ask_price","bid_price","bid_amount"]
[1758574430540,0.66,219.65,219.58,4.55414882]
[1758574430732,0.66,219.64,219.58,4.55414882]
[1758574431553,120.78547544,219.67,219.59,0.68]
[1758574432258,116.233186,219.67,219.6,4.55373406]
[1758574432557,115.573186,219.67,219.61,0.68]
[1758574433039,116.233186,219.67,219.61,0.68]
[1758574434554,116.233186,219.67,219.62,4.55331936]
[1758574434740,0.66,219.66,219.6,4.55355203]
[1758574435248,0.66,219.66,219.58,5.23398205]
[1758574435457,0.66,219.65,219.58,5.23398205]
[1758574435691,122.97941254,219.67,219.56,0.2]
[1758574435692,2.8539389,219.61,219.56,0.2]
[1758574435963,0.66,219.6,219.56,0.2]
[1758574436164,3.5139389,219.59,219.56,0.2]
[1758574436347,2.8539389,219.57,219.56,0.2]
[1758574436543,7.40829514,219.57,219.56,0.2]
[1758574436753,8.06829514,219.57,219.56,0.2]
[1758574436966,34.06829514,219.57,219.56,0.2]
[1758574437160,45.45418574,219.57,219.5,500.2]
[1758574437460,2.8539389,219.52,219.5,500.2]
[1758574437662,2.8539389,219.54,219.5,500.2]
[1758574438949,3.4839389,219.54,219.5,500.2]
[1758574439565,4.55478736,219.55,219.5,500.2]
[1758574439768,2.8539389,219.53,219.5,500.2]
[1758574441254,36.51,219.55,219.5,500.89]
[1758574441255,2.8539389,219.55,219.5,500.89]
[1758574441457,2.8539389,219.55,219.5,505.44576103]
[1758574443270,115.573186,219.54,219.5,500.89]
[1758574443570,2.8539389,219.53,219.5,500.2]
[1758574443954,2.8539389,219.51,219.5,500.2]
[1758574444272,3.4839389,219.51,219.5,500.2]
[1758574444955,0.63,219.51,219.5,500.2]
[1758574445153,29.4839389,219.51,219.5,500.2]
[1758574445472,34.03954001,219.51,219.5,500.2]
[1758574445770,48.77561856,219.51,219.5,500.2]
[1758574446156,47.63513402,219.51,219.5,500.2]
[1758574449362,34.03954001,219.51,219.5,500.2]
[1758574449679,69.81954001,219.51,219.5,500.2]
[1758574452566,68.79509521,219.51,219.5,500.2]
[1758574453855,33.01509521,219.51,219.5,500.2]
[1758574454056,68.75509521,219.51,219.5,500.2]
[1758574454461,68.12509521,219.51,219.5,500.2]
[1758574454664,32.38509521,219.51,219.5,500.2]
[1758574454860,68.12509521,219.51,219.5,500.89]
[1758574455466,68.12509521,219.51,219.5,500.2]
[1758574456872,68.12509521,219.51,219.5,500.88]
[1758574462691,68.12509521,219.51,219.5,500.2]
[1758574465090,11.38612369,219.57,219.5,500.88]
[1758574465297,35.64,219.59,219.51,36.34]
[1758574465478,36.16,219.58,219.52,0.68]
[1758574465788,1.8294941,219.57,219.52,0.68]
[1758574465969,1.8294941,219.55,219.53,0.68]
[1758574466171,37.9894941,219.55,219.53,0.68]
[1758574467681,4.55497859,219.54,219.5,500.91]
[1758574467882,1.8294941,219.52,219.5,500.91]
[1758574468100,37.9694941,219.52,219.51,0.71]
[1758574468476,37.9694941,219.52,219.5,500.2]
[1758574469090,37.9694941,219.52,219.5,500.91]
[1758574469283,11.38497215,219.59,219.51,0.71]
[1758574469471,27.8294941,219.55,219.51,0.71]
[1758574469672,68.50431751,219.55,219.51,0.71]
[1758574472982,134.2,219.54,219.51,0.71]
[1758574473178,134.2,219.53,219.51,0.71]
[1758574474397,134.2,219.53,219.52,0.71]
[1758574477977,134.2,219.53,219.52,5.26539358]
[1758574478808,4.55330962,219.63,219.52,54.86098759]
[1758574479008,37.76988928,219.62,219.53,0.71]
[1758574479177,1.13988928,219.61,219.53,0.71]
[1758574479387,35.98,219.6,219.54,4.55497859]
[1758574479690,35.98,219.6,219.55,0.71]
[1758574479883,35.98,219.6,219.56,0.71]
[1758574480283,35.98,219.6,219.53,4.55518607]
[1758574480603,35.98,219.6,219.54,0.71]
[1758574481485,35.98,219.6,219.55,4.55477112]
[1758574481679,35.96,219.6,219.56,0.71]
[1758574481887,35.96,219.6,219.57,0.71]
[1758574482689,35.96,219.6,219.55,4.55477112]
[1758574482893,35.96,219.6,219.58,0.71]
[1758574483209,1.8294941,219.65,219.59,0.71]
[1758574483408,37.07970416,219.64,219.59,5.26389679]
[1758574483706,35.94,219.64,219.6,0.71]
[1758574484801,134.2,219.66,219.6,0.71]
[1758574485103,35.92,219.65,219.6,0.71]
[1758574485404,1.8294941,219.67,219.61,4.5535267]
[1758574485405,35.9,219.67,219.61,4.5535267]
[1758574485598,35.9,219.67,219.62,0.71]
[1758574485998,35.9,219.67,219.61,4.5535267]
[1758574486199,35.9,219.67,219.63,0.71]
[1758574486897,35.9,219.67,219.64,0.71]
[1758574487094,35.9,219.67,219.59,11.38485359]
[1758574487293,35.9,219.67,219.6,0.71]
[1758574488399,35.9,219.67,219.61,4.5535267]
[1758574488597,35.9,219.67,219.62,0.71]
[1758574489209,0.63,219.74,219.63,13.59559401]
[1758574489413,35.88,219.73,219.64,0.71]
[1758574490507,35.88,219.73,219.65,15.93444115]
[1758574491007,35.88,219.73,219.66,0.71]
[1758574492515,35.88,219.73,219.67,4.55228296]
[1758574492693,36.0,219.75,219.68,0.71]
[1758574492894,36.0,219.75,219.68,14.11747632]
[1758574493098,36.0,219.75,219.69,0.71]
[1758574493792,36.08,219.78,219.69,0.71]
[1758574494616,36.08,219.78,219.7,4.55166135]
[1758574494788,36.08,219.78,219.71,0.71]
[1758574495303,36.71,219.78,219.71,0.71]
[1758574496294,41.26006683,219.78,219.71,0.71]
[1758574496610,36.71,219.78,219.72,4.55124704]
[1758574497290,36.08,219.78,219.72,4.55124704]
[1758574497498,36.08,219.78,219.73,0.71]
[1758574497499,134.2,219.77,219.73,0.71]
[1758574497712,134.2,219.77,219.74,0.71]
[1758574498214,134.2,219.77,219.72,15.92936464]
[1758574498414,134.2,219.77,219.75,0.71]
[1758574498620,134.2,219.77,219.72,15.92936464]
[1758574498621,134.2,219.77,219.76,0.71]
[1758574498916,134.2,219.77,219.76,5.26041863]
[1758574500719,0.1,219.78,219.73,14.30559401]
[1758574500917,0.1,219.78,219.74,5.26082748]
[1758574501619,0.1,219.78,219.75,0.71]
[1758574502613,0.1,219.78,219.77,18.14580559]
[1758574502918,0.1,219.78,219.77,18.85580559]
[1758574504200,0.73,219.85,219.78,13.59559401]
[1758574504201,0.1,219.85,219.78,13.59559401]
[1758574504399,0.1,219.85,219.79,0.71]
[1758574504806,0.1,219.85,219.8,4.54959053]
[1758574505093,0.1,219.85,219.81,0.71]
[1758574505317,0.1,219.85,219.82,0.71]
[1758574506019,0.63,219.84,219.78,14.30559401]
[1758574506217,0.1,219.85,219.8,14.30559401]
[1758574506603,0.1,219.85,219.81,0.71]
[1758574506803,0.1,219.85,219.83,13.59559401]
[1758574507120,0.1,219.85,219.84,14.30559401]
[1758574507328,0.1,219.89,219.85,13.59559401]
[1758574507491,0.1,219.89,219.85,50.28559401]
[1758574507695,0.1,219.89,219.88,39.59559401]
[1758574507914,0.1,219.89,219.88,75.87559401]
[1758574508102,0.1,219.95,219.89,13.59559401]
[1758574508302,0.1,219.95,219.89,14.30559401]
[1758574508502,0.1,219.95,219.91,13.59559401]
[1758574508908,0.1,219.95,219.92,18.14270204]
[1758574509119,0.1,219.95,219.92,18.85270204]
[1758574509620,0.1,219.95,219.93,39.59559401]
[1758574509922,0.1,219.95,219.94,13.59559401]
[1758574510518,0.1,219.95,219.93,26.71]
[1758574510814,0.1,219.95,219.93,26.0]
[1758574511017,0.1,219.95,219.92,13.59559401]
[1758574511218,0.1,219.95,219.91,0.71]
[1758574511391,1.9294941,219.95,219.91,0.71]
[1758574511592,1.9294941,219.95,219.92,0.71]
[1758574511796,1.9294941,219.95,219.93,0.71]
[1758574512022,0.1,219.95,219.93,0.71]
[1758574512734,0.1,219.95,219.91,13.59559401]
[1758574512904,0.1,219.95,219.9,13.59559401]
[1758574513106,0.1,219.95,219.92,0.71]
[1758574514695,0.1,219.95,219.9,18.14309117]
[1758574514900,0.1,219.95,219.93,0.71]
[1758574515720,0.1,219.95,219.92,4.54708684]
[1758574515920,0.1,219.95,219.94,0.71]
[1758574517121,0.1,219.95,219.94,14.30559401]
[1758574517810,0.1,219.99,219.95,18.14208184]
[1758574518122,0.1,219.99,219.97,13.59559401]
[1758574518428,2.1,220.0,219.97,50.05559401]
[1758574518623,2.1,220.0,219.99,13.59559401]
[1758574518998,2.1,220.0,219.99,0.71]
[1758574519218,0.1,220.01,220.0,39.59559401]
[1758574519409,0.1,220.01,220.0,40.30559401]
[1758574519605,3.47491066,220.1,220.0,40.30559401]
[1758574519606,3.47491066,220.1,220.01,13.59559401]
[1758574519805,3.47491066,220.1,220.02,0.71]
[1758574520219,4.54383027,220.08,220.02,0.71]
[1758574520636,5.17383027,220.08,220.02,0.71]
[1758574521622,0.63,220.08,220.02,0.71]
[1758574522004,0.63,220.08,220.02,14.64805725]
[1758574522209,4.54400872,220.07,220.02,0.71]
[1758574522607,0.63,220.08,220.01,18.14074698]
[1758574522809,4.54371079,220.09,220.03,0.71]
[1758574523024,5.17371079,220.09,220.03,0.71]
[1758574523222,5.17371079,220.09,220.01,18.85074698]
[1758574523530,0.63,220.08,220.0,26.0]
[1758574523924,0.63,220.08,220.01,0.71]
[1758574524806,5.17359606,220.09,220.01,19.10786031]
[1758574525006,0.63,220.08,220.01,19.10786031]
[1758574525744,0.63,220.08,220.01,14.56271687]
[1758574526331,4.54359606,220.09,220.02,0.71]
[1758574527229,0.63,220.1,220.03,4.54483479]
[1758574527409,0.63,220.1,220.04,0.72]
[1758574527610,8.01800438,220.12,220.04,0.72]
[1758574527826,7.387598,220.14,220.05,13.59559401]
[1758574528027,0.63,220.13,220.05,13.59559401]
[1758574528233,0.63,220.13,220.04,13.59559401]
[1758574528435,0.63,220.13,220.05,0.72]
[1758574528736,2.84491066,220.1,220.02,0.72]
[1758574528907,2.84491066,220.08,220.01,13.85271687]
[1758574529101,0.63,220.07,220.01,39.59559401]
[1758574529303,5.17420793,220.07,220.01,39.59559401]
[1758574529734,2.84491066,220.08,220.01,44.14083175]
[1758574530027,2.84491066,220.08,220.02,0.72]
[1758574530532,7.38878294,220.08,220.02,0.72]
[1758574530708,7.38878294,220.08,220.01,13.89365682]
[1758574530709,8.01878294,220.08,220.01,13.89365682]
[1758574530910,8.01878294,220.08,219.99,4.54562317]
[1758574531116,8.01878294,220.08,220.0,14.31559401]
[1758574531412,8.0184843,220.1,220.01,0.72]
[1758574531630,5.17357364,220.1,220.01,0.72]
[1758574531828,8.0184843,220.1,220.01,0.72]
[1758574532230,2.84491066,220.1,220.02,13.59559401]
[1758574532412,2.84491066,220.1,220.03,0.72]
[1758574532942,7.3883208,220.1,220.03,0.72]
[1758574533318,2.84491066,220.1,220.03,5.26480523]
[1758574533929,3.47491066,220.1,220.03,0.72]
[1758574534415,2.84491066,220.04,220.01,13.84054137]
[1758574534646,2.84491066,220.08,219.96,14.37964713]
[1758574534647,2.84491066,220.02,219.96,13.65964713]
[1758574534813,2.84491066,220.0,219.93,13.59559401]
[1758574535013,2.84491066,220.0,219.93,0.72]
[1758574535432,4.54566116,219.99,219.93,26.72]
[1758574535725,4.54566116,219.99,219.93,0.72]
[1758574535930,7.39057182,219.99,219.89,18.14332241]
[1758574536245,2.84491066,219.95,219.89,13.6035796]
[1758574536443,3.47491066,219.95,219.87,0.72]
[1758574536621,3.47491066,219.95,219.87,5.26812056]
[1758574536935,3.47491066,219.95,219.88,0.72]
[1758574537552,4.54638876,219.96,219.88,5.26774493]
[1758574537724,4.54638876,219.96,219.89,0.72]
[1758574538116,2.84491066,219.97,219.89,0.72]
[1758574538550,4.54608579,219.97,219.89,0.72]
[1758574538716,7.39099645,219.97,219.89,0.72]
[1758574539743,7.39099645,219.97,219.89,5.2676934]
[1758574539954,7.39099645,219.97,219.89,18.96548628]
[1758574540136,2.84491066,219.99,219.9,14.31559401]
[1758574540441,5.17524794,220.01,219.92,13.59559401]
[1758574540639,5.17524794,220.01,219.9,13.59559401]
[1758574540640,4.54524794,220.01,219.93,0.72]
[1758574540818,2.84491066,220.0,219.93,0.72]
[1758574541024,2.84491066,219.98,219.9,0.72]
[1758574541241,3.47491066,219.98,219.9,14.31559401]
[1758574541743,4.54607446,219.97,219.9,0.72]
[1758574542054,2.84491066,219.94,219.89,13.56834155]
[1758574542220,0.63,219.93,219.86,125.05840748]
[1758574542837,0.63,219.92,219.86,75.08281347]
[1758574543046,3.47491066,219.92,219.85,500.72]
[1758574543745,2.84491066,219.92,219.85,518.28296636]
[1758574543942,7.39203618,219.92,219.86,0.72]
[1758574544134,8.02203618,219.92,219.85,513.73442655]
[1758574545149,8.02203618,219.92,219.86,0.72]
[1758574545654,4.54712552,219.92,219.86,0.72]
[1758574545861,28.84491066,219.93,219.86,5.26830554]
[1758574546050,4.54689209,219.94,219.86,5.26830554]
[1758574546051,2.84491066,219.95,219.87,14.31559401]
[1758574546235,2.84491066,219.95,219.87,13.59559401]
[1758574546432,2.84491066,219.95,219.88,0.72]
[1758574547236,7.39149583,219.95,219.88,5.26779095]
[1758574547554,4.54658517,219.95,219.88,5.26779095]
[1758574548278,4.54628114,219.96,219.88,5.26779095]
[1758574548432,4.54628114,219.96,219.89,0.72]
[1758574548952,40.82601366,219.98,219.89,0.72]
[1758574549561,4.54601366,219.98,219.89,0.72]
[1758574549737,40.80601366,219.98,219.89,0.72]
[1758574549938,40.80601366,219.98,219.9,4.5475216]
[1758574550249,40.80601366,219.98,219.91,0.72]
[1758574551056,40.80601366,219.98,219.91,5.26727111]
[1758574552361,41.43601366,219.98,219.91,5.26727111]
[1758574552564,0.63,219.97,219.89,13.59559401]
[1758574552868,0.63,219.96,219.89,14.31559401]
[1758574553250,2.84491066,219.97,219.9,0.72]
[1758574554671,7.39100097,219.97,219.9,5.26736745]
[1758574555044,0.63,219.96,219.89,13.59559401]
[1758574555240,3.47491066,219.95,219.89,13.59559401]
[1758574555441,0.63,219.94,219.87,14.31559401]
[1758574555658,39.65491066,219.93,219.85,519.00297238]
[1758574556246,39.65491066,219.93,219.86,0.72]
[1758574556673,44.20190787,219.93,219.86,5.26815164]
[1758574557049,44.20190787,219.93,219.86,4.54815164]
[1758574557361,44.20190787,219.93,219.87,0.72]
[1758574557667,7.39190787,219.93,219.87,5.26808281]
[1758574557870,40.70699721,219.93,219.87,5.26808281]
[1758574558764,36.16,219.94,219.88,0.68]
[1758574559378,36.14,219.96,219.89,13.59559401]
[1758574559544,36.14,219.96,219.9,0.68]
[1758574560464,2.84491066,219.98,219.9,5.22745982]
[1758574560652,0.63,220.0,219.91,14.27559401]
[1758574560973,36.12,219.99,219.92,0.68]
[1758574562266,5.17550126,220.0,219.93,4.54690128]
[1758574562472,36.1,219.99,219.94,0.68]
[1758574562664,36.1,219.99,219.93,4.54690128]
[1758574562860,7.39017011,220.01,219.94,0.68]
[1758574563058,43.49017011,220.01,219.94,0.68]
[1758574563258,43.47017011,220.01,219.94,0.68]
[1758574563858,43.47017011,220.01,219.94,5.22653542]
[1758574564458,7.39017011,220.01,219.94,5.22653542]
[1758574564676,43.45017011,220.01,219.94,5.22653542]
[1758574564881,2.84491066,219.99,219.92,4.547046]
[1758574565178,0.63,219.98,219.92,4.547046]
[1758574566558,0.63,219.98,219.92,5.227046]
[1758574566774,7.39058694,219.99,219.92,5.227046]
[1758574567754,47.42311985,220.01,219.92,5.227046]
[1758574567755,36.06,220.01,219.93,14.27559401]
[1758574567956,36.06,220.01,219.94,0.68]
[1758574568155,36.04,220.01,219.94,0.68]
[1758574568852,36.02,220.01,219.95,4.54648783]
[1758574570166,36.02,220.01,219.95,5.22648783]
[1758574572082,41.1953244,220.01,219.95,0.68]
[1758574572272,2.84491066,219.99,219.9,0.68]
[1758574572478,0.63,219.98,219.9,26.68]
[1758574572864,0.63,219.98,219.91,0.68]
[1758574573271,5.17596548,219.98,219.91,5.22713599]
[1758574573572,2.84491066,219.94,219.85,514.41442655]
[1758574573881,0.63,219.93,219.86,0.68]
[1758574574074,2.84491066,219.9,219.85,513.73442655]
[1758574574374,0.63,219.89,219.85,513.73442655]
[1758574574581,0.63,219.88,219.85,513.73442655]
[1758574574786,37.78224525,219.89,219.85,513.73442655]
[1758574574980,38.41224525,219.89,219.85,513.73442655]
[1758574576086,42.95997468,219.89,219.85,513.73442655]
[1758574576385,1.82224525,219.87,219.85,513.73442655]
[1758574576886,1.82224525,219.89,219.85,513.73442655]
[1758574577088,35.94,219.9,219.85,513.73442655]
[1758574577089,1.82224525,219.9,219.86,0.69]
[1758574577474,1.82224525,219.9,219.87,0.69]
[1758574578389,1.82224525,219.9,219.85,518.97292587]
[1758574578692,1.82224525,219.88,219.85,513.73442655]
[1758574579200,0.63,219.9,219.85,518.97295732]
[1758574579201,1.82224525,219.9,219.85,518.97295732]
[1758574579370,1.82224525,219.9,219.85,518.28295732]
[1758574579569,1.82224525,219.9,219.86,0.69]
[1758574580071,1.82224525,219.9,219.85,518.28295732]
[1758574580388,1.82224525,219.9,219.85,518.97295732]
[1758574580583,1.82224525,219.9,219.86,0.69]
[1758574582388,1.82224525,219.9,219.86,5.23833616]
[1758574582596,1.82224525,219.9,219.85,518.28297885]
[1758574582801,1.82224525,219.9,219.85,518.97297885]
[1758574584983,61.92,219.93,219.85,513.73442655]
[1758574584984,1.82224525,219.88,219.85,513.73442655]
[1758574586100,1.82224525,219.88,219.85,514.42442655]
[1758574586283,4.54780732,219.89,219.85,513.73442655]
[1758574586484,1.82224525,219.88,219.85,514.42442655]
[1758574587093,1.82224525,219.88,219.85,513.73442655]
[1758574587285,1.82224525,219.88,219.86,0.69]
[1758574587598,1.82224525,219.89,219.86,0.69]
[1758574588096,1.82224525,219.89,219.85,518.28294777]
[1758574588398,1.82224525,219.89,219.86,0.69]
[1758574588604,35.82,219.9,219.86,0.69]
[1758574588901,1.82224525,219.87,219.85,513.73442655]
[1758574589111,1.82224525,219.89,219.86,0.69]
[1758574589281,1.82224525,219.89,219.85,513.73442655]
[1758574589481,1.82224525,219.89,219.85,514.42442655]
[1758574590010,1.82224525,219.91,219.86,0.69]
[1758574590591,1.82224525,219.93,219.86,0.69]
[1758574591287,5.17642643,219.96,219.86,0.69]
[1758574591490,37.58224525,219.95,219.87,13.59559401]
[1758574591784,1.82224525,219.95,219.88,16.60777332]
[1758574592103,35.76,219.96,219.89,0.69]
[1758574592909,1.82224525,219.95,219.89,0.69]
[1758574594704,1.82224525,219.95,219.89,5.23768562]
[1758574594898,1.82224525,219.95,219.9,0.69]
[1758574595099,6.99832417,219.97,219.9,0.69]
[1758574595302,35.76,219.96,219.9,0.69]
[1758574595693,35.76,219.98,219.92,4.54710803]
[1758574595893,4.54517846,220.02,219.93,0.69]
[1758574596106,1.82224525,220.01,219.93,0.69]
[1758574596312,37.58224525,220.01,219.93,0.69]
[1758574597281,37.58224525,220.01,219.94,4.54669455]
[1758574597502,37.58224525,220.01,219.95,0.69]
[1758574598119,42.75758562,220.01,219.93,13.59559401]
[1758574598608,42.75758562,220.01,219.94,0.69]
[1758574598988,28.45224525,220.03,219.94,0.69]
[1758574599201,35.74,220.02,219.94,0.69]
[1758574599393,35.74,220.02,219.95,4.54648783]
[1758574599715,35.74,220.02,219.96,0.69]
[1758574601520,35.74,220.02,219.97,4.54607446]
[1758574601686,35.74,220.02,219.98,0.69]
[1758574602014,1.82224525,220.04,219.99,0.69]
[1758574602215,35.74,220.03,219.97,5.23607446]
[1758574603017,1.82224525,220.07,219.99,13.59559401]
[1758574603322,1.82224525,220.07,220.0,0.69]
[1758574603323,35.74,220.06,220.0,0.69]
[1758574603510,35.74,220.06,220.0,5.23527658]
[1758574605800,2.45224525,220.08,220.0,5.23527658]
[1758574606001,38.19224525,220.08,220.01,0.69]
[1758574606413,42.73607769,220.08,220.01,0.69]
[1758574606619,42.73607769,220.08,219.97,13.59559401]
[1758574606825,1.82224525,220.04,219.97,14.28559401]
[1758574607035,0.63,220.05,219.98,0.69]
[1758574608816,1.82224525,220.04,219.98,0.69]
[1758574609327,1.82224525,220.04,219.91,1.82224525]
[1758574609497,1.82224525,220.0,219.93,13.59559401]
[1758574609697,1.82224525,219.98,219.92,0.69]
[1758574609897,1.82224525,219.98,219.9,0.69]
[1758574609898,1.82224525,219.96,219.9,0.69]
[1758574610122,1.82224525,219.94,219.9,0.69]
[1758574610324,1.82224525,219.98,219.9,26.69]
[1758574610493,1.82224525,219.98,219.91,0.69]
[1758574610695,36.37,219.99,219.91,0.69]
[1758574610915,1.82224525,219.99,219.92,18.14270204]
[1758574611101,1.82224525,219.99,219.93,0.69]
[1758574611306,0.63,219.98,219.91,13.59559401]
[1758574611823,0.63,219.98,219.91,18.83289963]
[1758574612216,6.36805098,219.99,219.92,0.69]
[1758574613119,1.82224525,219.93,219.87,13.59559401]
[1758574613906,1.82224525,219.93,219.87,14.28559401]
[1758574614103,1.82224525,219.95,219.87,13.59559401]
[1758574614307,2.45224525,219.95,219.88,0.69]
[1758574615236,6.99885464,219.95,219.88,5.23776116]
[1758574615442,6.99885464,219.95,219.85,513.73442655]
[1758574615443,1.82224525,219.91,219.85,513.73442655]
[1758574615630,0.63,219.91,219.85,513.73442655]
[1758574615872,1.82224525,219.89,219.85,513.73442655]
[1758574616845,6.36998201,219.89,219.85,513.73442655]
[1758574617048,1.82224525,219.87,219.85,513.73442655]
[1758574617419,6.36998201,219.89,219.85,513.73442655]
[1758574617919,6.99998201,219.89,219.85,513.73442655]
[1758574618361,0.63,219.88,219.85,513.73442655]
[1758574618520,6.36998201,219.89,219.85,513.73442655]
[1758574618709,5.17773676,219.89,219.85,513.73442655]
[1758574618909,0.63,219.88,219.85,513.73442655]
[1758574619261,0.63,219.87,219.85,513.73442655]
[1758574619426,0.63,219.86,219.85,500.0]
[1758574620536,160.83,219.86,219.85,500.0]
[1758574620737,195.94,219.86,219.85,500.0]
[1758574621261,200.48834894,219.86,219.85,500.0]
[1758574623054,201.11834894,219.86,219.85,500.0]
[1758574623963,164.74834894,219.86,219.85,500.0]
[1758574624165,200.48834894,219.86,219.85,500.0]
[1758574624348,160.2,219.86,219.85,500.0]
[1758574624555,169.94,219.86,219.85,500.0]
[1758574624764,134.2,219.86,219.85,500.0]
[1758574625461,1.82224525,219.92,219.85,500.66]
[1758574625657,37.56224525,219.92,219.86,0.66]
[1758574625871,63.56224525,219.92,219.86,0.66]
[1758574626867,35.74,219.92,219.86,0.66]
[1758574627077,1.82224525,219.96,219.86,0.66]
[1758574627369,26.0,219.94,219.86,0.66]
[1758574627767,61.74,219.94,219.86,5.20832506]
[1758574628068,66.28675275,219.94,219.87,0.66]
[1758574628452,0.63,219.93,219.87,0.66]
[1758574629071,1.82224525,219.92,219.85,536.4]
[1758574629275,1.82224525,219.92,219.85,500.66]
[1758574629855,138.74731481,219.91,219.85,500.0]
[1758574630058,1.82224525,219.88,219.85,500.0]
[1758574630263,1.82224525,219.86,219.85,500.0]
[1758574630453,38.19224525,219.86,219.85,500.0]
[1758574631150,37.56224525,219.86,219.85,500.0]
[1758574631567,35.74,219.86,219.85,500.0]
[1758574631771,36.37,219.86,219.85,500.0]
[1758574632074,42.74059419,219.86,219.85,500.0]
[1758574632576,40.91834894,219.86,219.85,500.0]
[1758574632771,42.74059419,219.86,219.85,500.0]
[1758574634951,7.00059419,219.86,219.85,500.0]
[1758574635361,42.74059419,219.86,219.85,500.0]
[1758574636178,42.11059419,219.86,219.85,500.0]
[1758574636568,43.13687358,219.86,219.85,500.0]
[1758574636761,7.39687358,219.86,219.85,500.0]
[1758574636960,43.13687358,219.86,219.85,500.0]
[1758574637898,0.63,220.02,219.86,13.59559401]
[1758574638062,2.84852464,220.01,219.9,13.59559401]
[1758574638261,2.84852464,219.98,219.91,36.61]
[1758574638587,2.84852464,219.98,219.92,0.67]
[1758574638953,4.54607446,219.97,219.92,0.67]
[1758574640080,4.54577727,219.99,219.92,5.21698022]
[1758574640258,4.54577727,219.99,219.93,0.67]
[1758574642276,7.57852842,219.98,219.89,0.67]
[1758574642479,35.92,219.97,219.89,0.67]
[1758574642676,6.94852842,219.96,219.89,0.67]
[1758574643260,6.94852842,219.94,219.89,0.67]
[1758574643492,6.94852842,219.94,219.9,0.67]
[1758574643792,6.94852842,219.91,219.85,500.0]
[1758574644077,6.94852842,219.89,219.85,500.0]
[1758574644469,6.94852842,219.89,219.85,500.67]
[1758574645781,11.49645887,219.89,219.85,500.67]
[1758574646175,6.94852842,219.87,219.85,500.0]
[1758574647685,11.49678609,219.87,219.85,500.0]
[1758574647994,35.92,219.86,219.85,500.0]
[1758574648577,32.94852842,219.86,219.85,500.0]
[1758574648768,68.86852842,219.86,219.85,500.0]
[1758574649585,14.22559401,219.93,219.85,500.0]
[1758574649790,6.94852842,219.86,219.85,500.66]
[1758574650179,6.94852842,219.86,219.85,500.0]
[1758574650373,35.92,219.89,219.85,500.66]
[1758574650578,35.92,219.89,219.86,0.66]
[1758574650794,35.92,219.89,219.85,500.0]
[1758574651088,35.92,219.89,219.85,500.66]
[1758574651278,6.94852842,219.88,219.85,500.66]
[1758574651472,32.94852842,219.86,219.85,500.0]
[1758574651794,73.41687736,219.86,219.85,500.0]
[1758574652490,74.04687736,219.86,219.85,500.0]
[1758574654404,73.41687736,219.86,219.85,500.0]
[1758574655096,74.04687736,219.86,219.85,500.0]
[1758574655309,87.64247137,219.86,219.85,471.30208069]
[1758574655474,87.64247137,219.86,219.85,419.34923781]
[1758574655780,87.64247137,219.86,219.85,99.49120391]
[1758574656084,91.83456177,219.86,219.85,1e-08]
[1758574657293,91.83456177,219.86,219.67,0.2]
[1758574657294,44.14539154,219.79,219.67,0.2]
[1758574657496,6.94852842,219.68,219.67,0.86]
[1758574658699,26.0,219.75,219.67,0.86]
[1758574658881,26.0,219.75,219.67,18.90647154]
[1758574659087,35.98,219.74,219.68,0.66]
[1758574659412,35.98,219.74,219.68,5.21203838]
[1758574659579,35.98,219.74,219.69,0.66]
[1758574660600,40.53088932,219.74,219.69,0.66]